Cogmind - Beta 14 @@@ ROGUE MODE // 2024.10.31 @ 02:22:21 Player: Gabe+Kate4EVR Result: Destroyed by exploding Compression Vault Performance ------------- Evolutions (2) 1000 Regions Visited (4) 800 Robots Destroyed (41) 205 Value Destroyed (1138) 1138 Prototype IDs (6) 120 Alien Tech Used (0) 0 Bonus (0) 0 TOTAL SCORE: 3263 Bonus ------- None Cogmind --------- Core Integrity 0/550 Matter 300/300 Energy 279/280 System Corruption 4% Temperature Cool (2) Movement Flying (102) Ox1 Location -8/Storage Parts ------- > --- POWER (1) -------- Heavy Ion Engine > --- PROPULSION (2) --- Improved VTOL Module Improved VTOL Module > --- UTILITY (6) ------ Improved Terrain Scan Processor Targeting Computer Targeting Computer Hacking Suite > --- WEAPON (2) ------- Heavy EM Shotgun Beam Rifle > --- INVENTORY (5) ---- Improved VTOL Module Improved VTOL Module Improved VTOL Module Grenade Launcher Plasma Cutter Peak State ------------ > --- POWER ------------ Heavy Ion Engine > --- PROPULSION ------- Improved VTOL Module Improved VTOL Module > --- UTILITY ---------- Improved Terrain Scan Processor Targeting Computer Targeting Computer Hacking Suite > --- WEAPON ----------- Heavy EM Shotgun Beam Rifle > --- INVENTORY -------- Improved VTOL Module Improved EM Shotgun Grenade Launcher Plasma Cutter [Rating: 26] Favorites ----------- Power Deuterium Engine Engine Deuterium Engine Power Core Light Nuclear Core Propulsion Light Treads Treads Light Treads Leg Improved Aluminum Leg Flight Unit Improved VTOL Module Utility Targeting Computer Device ECM Suite Storage Large Storage Unit Processor Targeting Computer Hackware Hacking Suite Protection Propulsion Shielding Weapon Assault Rifle Energy Gun Small Laser Ballistic Gun Assault Rifle Slashing Weapon Axe Build | -11 -10 -9 -8 -8 ------- Run | Yrd Mat Mat Mat Sto Slots Evolved 4 | . . 2 2 . Power . | . . . . . Propulsion . | . . . . . Utility 4 | . . 2 2 . Weapon . | . . . . . Parts Attached 67 | 7 8 21 14 17 Power 12 | 1 2 4 2 3 Engine 10 | 1 1 4 1 3 Core 2 | . 1 . 1 . Reactor . | . . . . . Propulsion 19 | 2 2 7 4 4 Treads 7 | 2 . 3 . 2 Leg 10 | . 2 4 4 . Wheel . | . . . . . Hover . | . . . . . Flight 2 | . . . . 2 Utility 12 | 1 3 2 3 3 Device 3 | . 2 . . 1 Storage 2 | 1 1 . . . Processor 5 | . . 2 2 1 Hackware 1 | . . . . 1 Protection 1 | . . . 1 . Artifact . | . . . . . Weapon 24 | 3 1 8 5 7 Energy Gun 14 | 1 1 3 4 5 Energy Cannon . | . . . . . Ballistic Gun 8 | 2 . 5 1 . Ballistic Cannon . | . . . . . Launcher . | . . . . . Special Weapon . | . . . . . Impact Weapon . | . . . . . Slashing Weapon 2 | . . . . 2 Piercing Weapon . | . . . . . Special Melee Weapon . | . . . . . Unidentified Prototypes 6 | . . 3 . 3 Corrupted Parts 1 | . . . . 1 System Corruption 3 | . . . . 3 Parts Lost 21 | . 1 1 14 5 Power 3 | . . . 2 1 Propulsion 5 | . . . 5 . Utility 4 | . . . 2 2 Weapon 9 | . 1 1 5 2 Highest Loss Streak 9 | . 1 1 9 4 To Critical Strikes . | . . . . . Average Slot Usage (%) 91 | . 96 98 83 75 Engine 8 | . 6 11 6 7 Core 2 | . 7 . . . Treads 10 | . 18 7 . 8 Leg 10 | . 9 14 15 . Device 8 | . 10 11 7 3 Storage 9 | . 14 11 8 . Processor 17 | . . 21 30 29 Hackware 1 | . . . . 8 Energy Gun 8 | . 5 8 8 11 Ballistic Gun 12 | . 22 12 5 . Peak Build Rating 26 | 6 11 18 21 26 Average Rating 13 | 4 8 15 16 19 On Entrance 7 | . 6 8 18 7 Naked Turns . | . . . . . Heaviest Build 39 | 11 30 37 39 20 Greatest Support 40 | 40 40 40 26 40 Greatest Overweight (x) 6 | . 1 1 6 6 Average Overweight (x) . | . . . . 1 Largest Inventory Capacity 15 | 8 15 15 15 5 Average Capacity 11 | 6 11 15 13 5 Most Carried 15 | 3 15 15 15 5 Average Carried 10 | 1 9 14 10 4 Final Capacity 15 | 8 15 15 5 5 Final Carried 15 | 3 15 15 5 5 Class Distribution -------------------- 98% | Mutant Dominant Class ---------------- Mutant | -10/Materials Mutant | -9/Materials Mutant | -8/Materials Mutant | -8/Storage Resources | -11 -10 -9 -8 -8 ----------- Run | Yrd Mat Mat Mat Sto Matter Collected 1386 | 194 410 386 115 281 Remotely . | . . . . . Salvage Created 1652 | . 424 464 374 390 Parts 89 | . 26 32 14 17 Haulers Intercepted 6 | . 1 2 . 3 Recyclers Shooed 1 | . 1 . . . Parts Field Recycled . | . . . . . Retrieved Matter . | . . . . . Parts Self-Destructed . | . . . . . Prevented . | . . . . . Kills | -11 -10 -9 -8 -8 ------- Run | Yrd Mat Mat Mat Sto Combat Hostiles Destroyed 30 | . 9 10 7 4 Melee 1 | . . . . 1 Guns 28 | . 9 10 7 2 Classes Destroyed 9 | . 5 1 2 1 Worker 1 | . . . 1 . Hauler 6 | . 1 2 . 3 Recycler 1 | . 1 . . . Watcher 3 | . 1 2 . . Swarmer 7 | . 3 4 . . Grunt 16 | . 6 3 5 2 Duelist 1 | . . . 1 . Sentry 5 | . . 3 1 1 Hunter 1 | . . . . 1 Best Kill Streak 7 | . 3 7 7 4 Combat Bots Only 6 | . 3 5 6 3 Max Kills in Single Turn 1 | . 1 1 1 1 Gunslinging . | . . . . . Exploded . | . . . . . Melee 1 | . . . . 1 Uniques/NPCs Destroyed . | . . . . . Combat | -11 -10 -9 -8 -8 -------- Run | Yrd Mat Mat Mat Sto Hostile Shots Fired 296 | . 67 45 140 44 Missed 61 | . 22 11 25 3 Damage Taken 3498 | . 497 385 1923 693 Core 682 | . 57 66 443 116 Absorbed by Shields 16 | . . . . 16 Redirected to Shielding 51 | . . . 51 . Core Remaining (%) 86 | 100 77 83 . . Volleys Fired 147 | . 44 35 48 20 Largest 2 | . 2 2 2 2 Hottest 125 | . 60 79 125 106 Shots Fired 272 | . 87 66 83 36 Gun 272 | . 87 66 83 36 Cannon . | . . . . . Launcher . | . . . . . Special . | . . . . . Kinetic 158 | . 71 59 28 . Thermal 82 | . 16 7 55 4 Explosive . | . . . . . Electromagnetic 32 | . . . . 32 Robot Hit Streak 27 | . 8 15 27 18 Robot Miss Streak 5 | . 3 4 5 1 Penetration Max . | . . . . . Secondary Targets 3 | . 1 1 . 1 Max Gunslinging Chain 1 | . 1 1 . 1 Shots Hit Robots 204 | . 51 45 71 37 Core Hits 92 | . 23 20 37 12 Critical Kills 1 | . 1 . . . Critical Parts Destroyed 1 | . 1 . . . Critical Strikes 8 | . 2 . 4 2 Burn 5 | . . . 4 1 Destroy 2 | . 2 . . . Sever 1 | . . . . 1 Melee Attacks 6 | . . . . 6 Impact . | . . . . . Slashing 6 | . . . . 6 Piercing . | . . . . . Sneak Attacks . | . . . . . Combat Hostiles . | . . . . . Follow-up Attacks . | . . . . . Damage Inflicted 3282 | . 596 696 1126 864 Guns 3052 | . 586 696 1122 648 Cannons . | . . . . . Explosions 102 | . . . . 102 Melee 114 | . . . . 114 Ramming 14 | . 10 . 4 . Kinetic 1431 | . 473 641 317 . Thermal 1119 | . 113 55 805 146 Explosive . | . . . . . Electromagnetic 604 | . . . . 604 Impact . | . . . . . Slashing 114 | . . . . 114 Piercing . | . . . . . Highest Corruption 3 | . . 1 . 3 Average Corruption 1 | . . 1 . 3 Corruption Purged . | . . . . . Corruption Blocked . | . . . . . Effects 6 | . . 2 . 4 Matter Fused 4 | . . 2 . 2 Heat Flow Errors 1 | . . . . 1 Parts Fused 1 | . . . . 1 Overload Shots . | . . . . . Overflow Damage . | . . . . . Projectiles . | . . . . . Explosions . | . . . . . Melee . | . . . . . Knockbacks . | . . . . . Impact . | . . . . . Kinetic . | . . . . . Secondary . | . . . . . Self-Inflicted Damage 50 | . . . . 50 Shots 2 | . . . . 2 Rammed 3 | . 3 . . . Targets Rammed 7 | . 5 . 2 . Kicked 3 | . 1 . 2 . Crushed 1 | . 1 . . . Highest Temperature 484 | . 126 46 484 264 Average Temperature 139 | . 48 8 235 97 Received Heat Transfer 1590 | . 213 129 1080 168 Effects 11 | . . . 11 . Shutdowns 2 | . . . 2 . Energy Bleed 3 | . . . 3 . Interference 5 | . . . 5 . Short Circuit 1 | . . . 1 . Siege Activations . | . . . . . Robots Corrupted 1 | . . . . 1 Combat Hostiles 1 | . . . . 1 Parts Fried 1 | . . . . 1 Impact Corruptions . | . . . . . Robots Melted . | . . . . . Combat Hostiles . | . . . . . Parts Melted 5 | . . . 5 . Heat Transferred 2621 | . 250 124 1912 335 Parts Sabotaged . | . . . . . Parts Stolen . | . . . . . Parts Stripped . | . . . . . Power Chain Reactions 3 | . . . . 3 Alert | -11 -10 -9 -8 -8 ------- Run | Yrd Mat Mat Mat Sto Peak Influence 299 | . 223 299 200 213 Initial 79 | . . 55 79 79 Average 106 | . 78 143 125 98 Maximum Alert Level 1 | . 1 1 1 1 Low Security (%) 93 | 100 94 89 92 96 Level 1 6 | . 5 10 7 3 Level 2 . | . . . . . Level 3 . | . . . . . Level 4 . | . . . . . Level 5 . | . . . . . High Security . | . . . . . Max Security . | . . . . . Squads Dispatched 5 | . 1 1 3 . Investigation 1 | . 1 . . . Extermination . | . . . . . Reinforcement 1 | . . 1 . . Assault . | . . . . . Garrison 3 | . . . 3 . Intercept . | . . . . . Searches Triggered . | . . . . . Construction Impeded . | . . . . . Haulers Reinforced . | . . . . . Active Scanning Responses . | . . . . . Cargo Convoy Interrupts . | . . . . . Stealth | -11 -10 -9 -8 -8 --------- Run | Yrd Mat Mat Mat Sto Distress Signals 8 | . 4 3 . 1 Communications Jammed . | . . . . . Distress Signals . | . . . . . Times Spotted 67 | . 16 21 20 10 Peak Tracking Total 8 | . 4 7 8 4 Tactical Retreats 10 | . 4 1 5 . Traps | -11 -10 -9 -8 -8 ------- Run | Yrd Mat Mat Mat Sto Traps Triggered 2 | . . 1 . 1 Indirectly . | . . . . . Trap Hack Attempts . | . . . . . Triggered . | . . . . . Disarmed . | . . . . . Reprogrammed . | . . . . . Reused . | . . . . . Traps Extracted . | . . . . . Installed . | . . . . . Triggered . | . . . . . Machines | -11 -10 -9 -8 -8 ---------- Run | Yrd Mat Mat Mat Sto Machines Disabled 1 | . . . . 1 Max in Single Turn 1 | . . . . 1 Machines Repaired . | . . . . . Machines Dismantled . | . . . . . Machines Sabotaged . | . . . . . Overloaded Fab Kills . | . . . . . Hacking | -11 -10 -9 -8 -8 --------- Run | Yrd Mat Mat Mat Sto Machines Accessed 5 | . 4 . . 1 Terminals 4 | . 3 . . 1 Fabricators . | . . . . . Repair Stations 1 | . 1 . . . Recycling Units . | . . . . . Scanalyzers . | . . . . . Garrison Access . | . . . . . Total Hacks 11 | . 9 . . 2 Successful 4 | . 4 . . . Failed 7 | . 5 . . 2 Catastrophic . | . . . . . Database Lockouts . | . . . . . Manual 2 | . . . . 2 Terminals 8 | . 6 . . 2 Fabricators . | . . . . . Repair Stations 3 | . 3 . . . Recycling Units . | . . . . . Scanalyzers . | . . . . . Garrison Access . | . . . . . Terminal Hacks 3 | . 3 . . . Alert Level 1 | . 1 . . . Locate Traps 1 | . 1 . . . Transport Status 1 | . 1 . . . Fabricator Hacks . | . . . . . Repair Station Hacks 1 | . 1 . . . Scan Component 1 | . 1 . . . Recycling Unit Hacks . | . . . . . Scanalyzer . | . . . . . Garrison Access Hacks . | . . . . . Unauthorized Hacks . | . . . . . Terminals . | . . . . . Fabricators . | . . . . . Repair Stations . | . . . . . Recycling Units . | . . . . . Scanalyzers . | . . . . . Garrison Access . | . . . . . Data Cores Recovered . | . . . . . Used . | . . . . . Hacking Detections 4 | . 3 . . 1 Full Trace Events 1 | . 1 . . . Feedback Events . | . . . . . Feedback Blocked . | . . . . . Robot Schematics Acquired . | . . . . . Robots Built . | . . . . . Authchips . | . . . . . Time . | . . . . . Total Robot Build Rating . | . . . . . Part Schematics Acquired . | . . . . . Parts Built . | . . . . . Authchips . | . . . . . Time . | . . . . . Total Part Build Rating . | . . . . . Parts Repaired . | . . . . . Time . | . . . . . Parts Recycled . | . . . . . Recycled Matter . | . . . . . Retrieved Matter . | . . . . . Retrieved Components . | . . . . . Parts Scanalyzed . | . . . . . Part Schematics Acquired . | . . . . . Parts Damaged . | . . . . . Bothacking | -11 -10 -9 -8 -8 ------------ Run | Yrd Mat Mat Mat Sto Used RIF Installer . | . . . . . Robots Hacked . | . . . . . Non-combat . | . . . . . Combat . | . . . . . Robot Hacks Applied . | . . . . . Relay Couplers Released . | . . . . . Fabnet Peak Effective % . | . . . . . Robots Rewired . | . . . . . Allies Hacked . | . . . . . Hacks Repelled . | . . . . . Allies | -11 -10 -9 -8 -8 -------- Run | Yrd Mat Mat Mat Sto Total Allies . | . . . . . Largest Group . | . . . . . Highest-Rated Group . | . . . . . Highest-Rated Ally . | . . . . . Total Orders . | . . . . . Ally Attacks . | . . . . . Total Damage . | . . . . . Kills . | . . . . . Allies Corrupted . | . . . . . Allies Melted . | . . . . . Intel | -11 -10 -9 -8 -8 ------- Run | Yrd Mat Mat Mat Sto Robot Analysis Total . | . . . . . Derelict Logs Recovered . | . . . . . Drone Launches . | . . . . . Drone Recoveries . | . . . . . Exploration | -11 -10 -9 -8 -8 ------------- Run | Yrd Mat Mat Mat Sto Turns Passed 2401 | 81 777 748 331 464 Spaces Moved 1056 | 44 347 330 135 200 Core 129 | 1 . . 62 66 Treads 458 | 43 219 100 . 96 Legs 431 | . 128 230 73 . Wheels . | . . . . . Hover . | . . . . . Flight 38 | . . . . 38 Fastest Speed 50 | 50 160 120 50 50 Average Speed 168 | 157 171 178 128 176 Slowest Speed 350 | 160 190 240 350 350 Overloaded Moves . | . . . . . Propulsion Burnouts . | . . . . . Robots Hopped . | . . . . . Cave-ins Triggered . | . . . . . Exploration Rate (%) 31 | 4 73 36 12 32 Regions Visited 4 Branch Regions 1 Pre-discovered Areas . | . . . . . Known Exits Taken . | . . . . . Unknown Exits Taken 4 | 1 1 1 1 . Scrap Searched . | . . . . . Spaces Dug . | . . . . . Terrain Destroyed 10 | . . . . 10 Melee . | . . . . . Projectile . | . . . . . AOE 10 | . . . . 10 Terrain Rammed . | . . . . . Walls Destroyed . | . . . . . Machines Disabled . | . . . . . Actions | -11 -10 -9 -8 -8 --------- Run | Yrd Mat Mat Mat Sto Total 1415 | 53 444 444 210 264 Wait 67 | . 27 25 10 5 Move 1052 | 43 346 329 134 200 Hop . | . . . . . Pick Up 28 | 2 11 10 . 5 Fast Attach 35 | 7 3 9 1 15 Attach 16 | . 1 2 11 2 Detach 7 | 1 1 2 1 2 Swap 16 | . 4 10 2 . Drop 34 | . 2 22 1 9 Fire 147 | . 44 35 48 20 Melee 6 | . . . . 6 Ram . | . . . . . Kick 3 | . 1 . 2 . Crush 4 | . 4 . . . Escape Stasis . | . . . . . Rewire . | . . . . . Trap . | . . . . . Miscellaneous . | . . . . . Route ------- -11/Scrapyard -10/Materials -9/Materials (discovered 2 exits: [*Mat] / [*Min]) -8/Materials -8/Storage History --------- Turn | Location | Event 8 | -11/Scrapyard | Discovered new exit (range 16) 82 | -11/Scrapyard | Entered Materials 310 | -10/Materials | Build established: Mutant 756 | -10/Materials | Discovered new exit (range 11) 859 | -10/Materials | Entered another Materials area 859 | -9/Materials | Evolved 2 slots: Utility x2 1276 | -9/Materials | Discovered new exit (range 14) 1571 | -9/Materials | Discovered new exit (range 16) 1607 | -9/Materials | Entered another Materials area 1607 | -8/Materials | Evolved 2 slots: Utility x2 1735 | -8/Materials | Garrison activated, responded to threat 1836 | -8/Materials | Lost 4 parts (1p1n2w) 1882 | -8/Materials | Core integrity fell below 50% 1925 | -8/Materials | Discovered new exit (range 10) 1926 | -8/Materials | Lost 9 parts (1p4n1u3w) 1937 | -8/Materials | Core integrity fell below 20% 1938 | -8/Materials | Entered Storage 2163 | -8/Storage | Lost 4 parts (1p2u1w) 2402 | -8/Storage | Destroyed by exploding Compression Vault Last Messages --------------- 02365_ Acquired Faulty Imp. VTOL Module. 02367_ Dropped Faulty Imp. VTOL Module. 02367_ U-05 Engineer builds a Wall. 02367_ Acquired Imp. VTOL Module. 02368_ U-05 Engineer builds a Door. 02370_ Dropped Imp. EM Shotgun. 02371_ Acquired Imp. VTOL Module. 02372_ U-05 Engineer lays Concrete. 02374_ R-06 Scavenger collects Corrupted Aluminum Leg. 02375_ Acquired 20 matter. 02377_ System corrupted: Heat flow error (+285). 02377_ R-06 Scavenger collects Corrupted Assault Rifle. 02381_ R-06 Scavenger collects Corrupted Lgt. Nuclear Core. 02389_ Penetrated by Slug. 02392_ K-01 Serf collects debris. 02402_ Triggered Proton Bomb Trap. 02402_ A bubble of electromagnetic force engulfs the area. 02402_ W-25 Informer destroyed. 02402_ Compression Vault explodes. 02402_ Proton Bomb Trap short circuited. Map ----- +----------------------------------------------------+ | ?????????????????????????????????????????????????? | | ?????????????????????????????????????????????????? | | ?????????????????????????????????????????????????? | | ?????????????????????????????????????????????????? | | ?????????????????????????????????????????????????? | | ?????????????????????????????????????????????????? | | ?????????????????????????????????????????????????? | | ?????????????????????????????????????????????????? | | ?????????????????????????????????????????????????? | | ?????????????????????????????????????????????????? | | ?????????????????????????????????????????????????? | | ?????????????????????????????????????????????????? | | ?????????????????????????????????????????????????? | | ?????????????????????????????????????????????????? | | ??####????####???###?????????????????????????????? | | ??? #????# ???? #?????????????????????????????? | | ??? #????# ???? #?????????????????????????????? | | """" ###### ????" #?????????????????????????????? | | * //## # ????" #?????????#???????????????????? | | """" ## # ???"" #???????? #???????????????????? | | """ ## # "???" #???????? #???????????????????? | | = " ## # "???" #??????? #???????????????????? | | *"" ## # """"" #??????? #???????????????????? | | ## # #?????? #???????????????????? | | #+##### #####+########## ##??????????????????? | | = == [%=% @ #??????????????????? | | ! % ! % ^% + ?????????????????? | | =! [ % ^! #??????????????????? | | ############# ^^ #??????????????????? | | ????????????# k #??????????????????? | | ????????????+ #??????????????????? | | ????????????# #??????????????????? | | ????????????########+##^ ""#??????????????????? | | ??????????????????????# rY"#??????????????????? | | ??????????????????????# ""#??????????????????? | | ??????????????????????# ???????????????????? | | ??????????????????????+ ???????????????????? | | ??????????????????????######+##??????????????????? | | ?????????????????????????????????????????????????? | | ?????????????????????????????????????????????????? | | ?????????????????????????????????????????????????? | | ?????????????????????????????????????????????????? | | ?????????????????????????????????????????????????? | | ?????????????????????????????????????????????????? | | ?????????????????????????????????????????????????? | | ?????????????????????????????????????????????????? | | ?????????????????????????????????????????????????? | | ?????????????????????????????????????????????????? | | ?????????????????????????????????????????????????? | | ?????????????????????????????????????????????????? | +----------------------------------------------------+ Best States ------------- Heat Dissipation 39 Energy Generation 14 Energy Capacity 280 Matter Stores 300 Matter Capacity 300 Sight Range 16 Terrain Scan Density 110 ECM Strength 1 Propulsion Shielding 33 Evasion (%) 55 Targeting Accuracy 20 Recoil Reduction 2 Offensive Hacking 10 Item Schematics ----------------- None Robot Schematics ------------------ None Fabricated ------------ Nothing Alien Tech Used ----------------- None Achievements -------------- None Challenges ------------ None Game ------ Seed HypercooledRocketBooster Manual? 0 Play Time 00:16:36 Cumulative 201.0 hours Start 2024.10.31 @ 02:08:46 End 2024.10.31 @ 02:22:21 Sessions 1 Manual Loads 0 Difficulty Rogue Special Mode None Game No. 391 Rogue 391 Adventurer 0 Explorer 0 Win Type - Total 0 Types 0/0/0/0/0/0/0/0/0 Lore% 42 Gallery% 64 Achievement% 48 Wizard Run 0 Options --------- Layout 0 ASCII 0 Keyboard 1 Movement Numpad Keybinds 0 Fullscreen 2 Font 18/X11 Map View 76x50 Zoom Use 0% Tactical HUD 1 Map Filters NONE Filters NONE Steam 1 RUN: 58f2679b-7fb6-4e0c-a0f8-153e7f0c5a37